Cogmind - Beta 13 @@@ ROGUE MODE // 2024.04.06 @ 12:37:29 Player: Cheeriohz Result: Destroyed by G-67 Veteran with Field Laser Performance ------------- Evolutions (7) 3500 Regions Visited (21) 4200 Robots Destroyed (182) 910 Value Destroyed (8416) 8416 Prototype IDs (25) 500 Alien Tech Used (2) 400 Bonus (8107) 8107 TOTAL SCORE: 26033 Bonus ------- High Alert Combat Kills 494 Follower Combat Kills 1539 Entered Garrisons 800 Used RIF Installer 2000 Entered DSFs 1000 Used Core Reset Matrix 3000 Friendly Fire -726 Cogmind --------- Core Integrity 0/1300 Matter 54/300 Energy 91/100 System Corruption 10% Temperature Cool (6) Movement Flying (45) Location -3/Section 7 Parts ------- > --- POWER (1) -------- (None) > --- PROPULSION (6) --- Impulse Thruster Array > --- UTILITY (11) ----- Experimental Power Amplifier Advanced Cryofiber Web Advanced Coolant Injector Experimental Optical Array Advanced Salvage Targeting Computer Advanced Target Analyzer Faulty Experimental Thermal Shield > --- WEAPON (3) ------- (None) > --- INVENTORY (5) ---- Subatomic Replicator Light Antimatter Cannon Light Antimatter Cannon Hellfire Missile Launcher Peak State ------------ > --- POWER ------------ Particle Reactor > --- PROPULSION ------- Improved Gyrokinetic Inverter Improved Gyrokinetic Inverter Antigrav Array Antigrav Array > --- UTILITY ---------- Advanced Heat Sink Quantum Shading Machine Experimental Optical Array Advanced Sensor Array Advanced Salvage Targeting Computer Improved Targeting Computer Advanced Targeting Computer Advanced Target Analyzer Antimissile System Hacking Suite System Shield > --- WEAPON ----------- Light Antimatter Cannon Light Antimatter Cannon Light Antimatter Cannon > --- INVENTORY -------- Experimental Energy Well Compact HERF Cannon Light Antimatter Cannon Hellfire Missile Launcher Advanced Remote Datajack [Rating: 141] Favorites ----------- Power Subdweller Power Source Engine Subdweller Power Source Power Core Enhanced Nuclear Core Reactor Light Quantum Reactor Propulsion Light Treads Treads Light Treads Leg Myomer Leg Wheel Wheel Hover Unit Linear Gravjet Flight Unit Field Propulsion Drive Utility Small Storage Unit Device Improved Sensor Array Storage Small Storage Unit Processor Improved Signal Interpreter Hackware Relay Coupler [Grunt] Protection Scrap Shield Weapon Makeshift Hammer Energy Gun Variable Charge Gun Energy Cannon Compact HERF Cannon Ballistic Gun Battle Rifle Ballistic Cannon Battle Cannon Launcher Long-range Missile Launcher Special Weapon Remote Datajack Impact Weapon Makeshift Hammer Slashing Weapon Ripper Piercing Weapon Heavy Pick Special Melee Weapon Advanced Datajack Build | -11 -10 -10 -8 -8 -7 -7 -6 -6 -5 -5 -5 -5 -4 -4 -4 -4 -4 -4 -3 -3 -3 ------- Run | Yrd Mat Sub Mat Gar Fac Gar Fac DSF Fac Gar Fac DSF Fac Was Fac Gar Fac Ext Res Qua Sec Slots Evolved 14 | . . . 4 . 2 . 2 . 2 . . . 2 . . . . . 2 . . Power . | . . . . . . . . . . . . . . . . . . . . . . Propulsion 4 | . . . 1 . 1 . 1 . . . . . 1 . . . . . . . . Utility 9 | . . . 3 . 1 . 1 . 1 . . . 1 . . . . . 2 . . Weapon 1 | . . . . . . . . . 1 . . . . . . . . . . . . Parts Attached 333 | . 16 45 19 15 34 2 5 5 5 2 2 12 4 9 7 17 27 20 58 23 6 Power 30 | . 2 8 2 2 4 . 1 . . . . . . 2 . . 1 . 4 3 1 Engine 12 | . 1 8 1 1 1 . . . . . . . . . . . . . . . . Core 10 | . 1 . 1 1 3 . 1 . . . . . . 1 . . . . 1 . 1 Reactor 8 | . . . . . . . . . . . . . . 1 . . 1 . 3 3 . Propulsion 66 | . 5 8 1 5 2 . 2 . . . . 1 1 . . 5 6 7 17 5 1 Treads 15 | . 1 5 1 5 . . . . . . . . . . . . . . 2 1 . Leg 8 | . . . . . . . . . . . . . . . . . . 6 2 . . Wheel 7 | . 4 3 . . . . . . . . . . . . . . . . . . . Hover 23 | . . . . . . . . . . . . . . . . . 5 1 13 4 . Flight 13 | . . . . . 2 . 2 . . . . 1 1 . . 5 1 . . . 1 Utility 119 | . 3 5 9 3 14 . 2 5 4 2 2 1 2 2 5 4 14 6 26 6 4 Device 65 | . . . 5 . 6 . 1 1 3 . 2 1 2 1 4 . 9 3 19 4 4 Storage 8 | . 1 1 1 . 1 . . . . . . . . . . . . . 4 . . Processor 14 | . . . 1 . 3 . 1 2 1 . . . . . . 1 . 2 2 1 . Hackware 14 | . . . . . 2 . . 2 . . . . . . 1 3 4 . 1 1 . Protection 18 | . 2 4 2 3 2 . . . . 2 . . . 1 . . 1 1 . . . Artifact . | . . . . . . . . . . . . . . . . . . . . . . Weapon 118 | . 6 24 7 5 14 2 . . 1 . . 10 1 5 2 8 6 7 11 9 . Energy Gun 18 | . . 4 . . . . . . . . . . . . 1 5 4 1 2 1 . Energy Cannon 6 | . . 1 . . . . . . . . . . . . . . 1 1 3 . . Ballistic Gun 22 | . 3 8 3 2 3 . . . . . . . . 1 . 1 . . . 1 . Ballistic Cannon 15 | . 1 5 . 2 . . . . . . . . . . 1 1 . . . 5 . Launcher 24 | . 2 3 3 . 1 1 . . . . . 3 . 1 . 1 . 2 5 2 . Special Weapon 6 | . . . . . 3 . . . . . . . . . . . 1 2 . . . Impact Weapon 12 | . . 3 1 1 6 1 . . . . . . . . . . . . . . . Slashing Weapon 11 | . . . . . . . . . 1 . . 6 1 1 . . . 1 1 . . Piercing Weapon 1 | . . . . . . . . . . . . 1 . . . . . . . . . Special Melee Weapon 3 | . . . . . 1 . . . . . . . . 2 . . . . . . . Unidentified Prototypes 17 | . . . . . 3 . 1 . . . . . . 1 . . 1 . 5 4 2 Corrupted Parts 5 | . . . . 2 . . . . . . . . . . . . . 2 1 . . System Corruption 15 | . . . . 9 . . . . . . . . . . . . . 5 1 . . Parts Lost 79 | . . 9 2 8 1 . . 1 1 2 . 3 2 . . 7 . 5 18 16 4 Power 9 | . . 1 1 1 1 . . . . . . . . . . . . . 1 3 1 Propulsion 25 | . . 2 . 3 . . . . . . . . . . . 6 . 4 6 3 1 Utility 29 | . . 2 . 2 . . . 1 1 1 . 1 2 . . . . 1 9 7 2 Weapon 16 | . . 4 1 2 . . . . . 1 . 2 . . . 1 . . 2 3 . Highest Loss Streak 9 | . . 4 1 7 1 . . 1 1 2 . 3 2 . . 6 . 2 7 9 3 To Critical Strikes . | . . . . . . . . . . . . . . . . . . . . . . Average Slot Usage (%) 86 | . 100 91 94 88 75 81 81 82 77 77 73 76 84 84 77 82 76 88 89 74 41 Engine 5 | . 5 13 4 . 2 6 . . . . . . . . . . . . . . . Core 2 | . 8 . 2 7 3 . 4 5 5 5 5 5 4 4 4 5 3 . . . 3 Treads 8 | . . 22 6 21 . . . . . . . . . . . . . . 1 . . Leg 1 | . . . . . . . . . . . . . . . . . . 7 7 . . Wheel 4 | . 27 5 18 . . . . . . . . . . . . . . . . . . Hover 4 | . . . . . . . . . . . . . . . . . 14 18 16 13 3 Flight 2 | . . . . . 5 6 11 11 10 10 10 9 14 14 14 19 6 . . . 4 Device 7 | . . . 18 3 8 6 10 8 12 6 5 5 13 8 10 10 5 12 22 16 12 Storage 5 | . 14 3 9 9 6 6 5 5 5 5 5 5 4 4 4 5 5 5 5 . . Processor 8 | . . . 6 9 13 18 15 16 16 21 21 21 19 19 11 10 13 16 14 22 14 Hackware 4 | . . . . . 11 12 11 16 15 15 15 15 14 14 14 18 19 5 . 6 2 Protection 9 | . 13 16 11 20 8 12 11 6 1 3 5 4 . 3 4 . 1 3 1 . . Energy Gun 1 | . . 2 . . . . . . . . . . . . 2 5 2 5 2 . . Ballistic Gun 7 | . 25 12 12 7 3 . . . . . . . . 3 . . . . . . . Ballistic Cannon 2 | . 2 6 . 1 . . . . . . . . . . 1 . . . . 9 . Impact Weapon 2 | . . 5 4 6 5 4 5 5 . . . . . . . . . . . . . Slashing Weapon 1 | . . . . . . . . . 5 5 5 8 12 6 . . . 3 3 . . Naked Turns . | . . . . . . . . . . . . . . . . . . . . . . Heaviest Build 78 | 11 33 37 78 59 59 28 28 27 31 29 23 31 32 37 38 37 44 65 72 48 12 Greatest Support 115 | 20 26 40 30 60 60 24 29 29 29 29 29 31 38 38 38 38 48 95 115 76 16 Greatest Overweight (x) 15 | . 1 1 2 15 . 1 . . 1 . . . 8 . . 1 1 2 3 2 . Average Overweight (x) . | . . . 1 . . . . . . . . . . . . . . . . . . Largest Inventory Capacity 15 | . 15 15 15 15 15 8 8 8 8 8 8 8 8 8 8 8 8 8 8 5 5 Average Capacity 8 | . 14 7 15 15 8 8 8 8 8 8 8 8 8 8 8 8 8 8 7 5 5 Most Carried 15 | . 15 15 15 15 15 8 8 8 8 8 8 8 7 8 8 8 8 8 8 5 4 Average Carried 8 | . 13 6 14 14 8 7 7 7 7 7 7 7 5 7 7 7 7 7 7 4 4 Final Capacity 15 | 8 15 15 15 15 8 8 8 8 8 8 8 8 8 8 8 8 8 8 5 5 5 Final Carried 15 | 6 15 15 15 15 8 8 8 8 8 7 8 8 5 8 8 8 8 8 5 4 4 Class Distribution -------------------- 32% | Mutant 24% | Scavenger-Mutant 12% | Subdweller-Mutant 7% | Derelict-Mutant 4% | Scavenger-Gunner 3% | Gladiator Dominant Class ---------------- Mutant | -10/Materials Subdweller-Mutant | -10/Subcaves Mutant | -8/Materials Scavenger-Mutant | -8/Garrison Scavenger-Mutant | -7/Factory Scavenger-Scout | -7/Garrison Scavenger-Mutant | -6/Factory Mutant | -6/DSF Gladiator | -5/Factory Bothacker-Scout | -5/Garrison Scout | -5/Factory Gladiator | -5/DSF Scavenger-Ninja | -4/Factory Bothacker-Mutant | -4/Waste Mutant | -4/Factory Mutant | -4/Garrison Mutant | -4/Factory Scavenger-Mutant | -4/Extension Scavenger-Mutant | -3/Research Scavenger-Gunner | -3/Quarantine Mutant | -3/Section 7 Resources | -11 -10 -10 -8 -8 -7 -7 -6 -6 -5 -5 -5 -5 -4 -4 -4 -4 -4 -4 -3 -3 -3 ----------- Run | Yrd Mat Sub Mat Gar Fac Gar Fac DSF Fac Gar Fac DSF Fac Was Fac Gar Fac Ext Res Qua Sec Matter Collected 6087 | 200 280 1069 601 458 494 . . 54 132 40 . 143 63 94 120 173 260 541 932 433 . Remotely 100 | . . . . . 80 . . . . . . . . . . . 20 . . . . Salvage Created 6741 | . 391 514 691 275 1043 40 . . 256 107 . 189 63 . . . 231 1059 1500 382 . Parts 358 | . 35 37 35 12 36 4 . . 10 5 . 30 1 . . . 9 45 77 22 . Haulers Intercepted 8 | . 2 . 2 . 2 . . . 2 . . . . . . . . . . . . Recyclers Shooed 6 | . . . 1 . 1 . . . . . . . . . . . . 2 1 1 . Parts Field Recycled . | . . . . . . . . . . . . . . . . . . . . . . Retrieved Matter . | . . . . . . . . . . . . . . . . . . . . . . Parts Self-Destructed 2 | . . 2 . . . . . . . . . . . . . . . . . . . Prevented . | . . . . . . . . . . . . . . . . . . . . . . Kills | -11 -10 -10 -8 -8 -7 -7 -6 -6 -5 -5 -5 -5 -4 -4 -4 -4 -4 -4 -3 -3 -3 ------- Run | Yrd Mat Sub Mat Gar Fac Gar Fac DSF Fac Gar Fac DSF Fac Was Fac Gar Fac Ext Res Qua Sec Combat Hostiles Destroyed 130 | . 9 18 16 7 14 3 . . . 2 . 11 1 . . . . 12 29 8 . Melee 21 | . . . 4 . 6 . . . . 2 . 4 1 . . . . 1 3 . . Guns 21 | . 5 6 4 . 2 . . . . . . . . . . . . 2 1 1 . Cannons 25 | . . 5 . 6 . . . . . . . . . . . . . . 9 5 . AOE 51 | . 4 7 6 . . 3 . . . . . 7 . . . . . 9 13 2 . Classes Destroyed 19 | . 7 2 4 . 2 . . . . . . 1 . . . 1 . 1 . 1 . Worker 9 | . 2 . 2 . 1 . . . . . . . . . . . . 2 . 2 . Builder 8 | . 3 . 1 . 1 . . . . . . . . . . . . 2 . 1 . Tunneler 3 | . 1 . . . . . . . 1 . . . . . . . . 1 . . . Hauler 8 | . 2 . 2 . 2 . . . 2 . . . . . . . . . . . . Recycler 11 | . . . 2 . 3 . . . . . . . . . . . 1 3 1 1 . Operator 2 | . . . 1 . 1 . . . . . . . . . . . . . . . . Watcher 9 | . 1 . 1 . 2 . . . . . . . . . . . 1 . 3 1 . Swarmer 20 | . 3 . 3 . . 3 . . . 1 . 5 . . . . . . 5 . . Cutter 12 | . . . . . . . . . . . . 6 . . . . . . 6 . . Grunt 39 | . 6 . 9 . 8 . . . . . . . 1 . . . . 8 7 . . Duelist 1 | . . . . . 1 . . . . . . . . . . . . . . . . Sentry 16 | . . . 3 5 1 . . . . 1 . . . . . . 1 1 4 . . Specialist 3 | . . . . . . . . . . . . . . . . . . . . 3 . Hunter 7 | . . . 1 2 . . . . . . . . . . . . . 2 . 2 . Programmer 14 | . . . . . 4 . . . . . . . . . . . . . 7 3 . Behemoth 1 | . . . . . . . . . . . . . . . . . . 1 . . . Cobbler 1 | . . 1 . . . . . . . . . . . . . . . . . . . Subdweller 18 | . . 18 . . . . . . . . . . . . . . . . . . . Surgeon 1 | . . . . . . . . . . . . . . . . 1 . . . . . Best Kill Streak 9 | . 6 4 8 4 9 3 . . 2 1 . 6 1 . . . 1 9 9 4 . Combat Bots Only 8 | . 3 4 5 4 5 3 . . . 1 . 6 1 . . . . 6 8 2 . Max Kills in Single Turn 5 | . 3 2 3 1 1 3 . . 1 1 . 3 1 . . 1 2 4 5 2 . Gunslinging . | . . . . . . . . . . . . . . . . . . . . . . Exploded 5 | . 1 2 2 . . 3 . . . . . 3 . . . . . 3 5 1 . Melee 1 | . . . 1 . 1 . . . . 1 . 1 1 . . . . 1 1 . . Uniques/NPCs Destroyed . | . . . . . . . . . . . . . . . . . . . . . . Combat | -11 -10 -10 -8 -8 -7 -7 -6 -6 -5 -5 -5 -5 -4 -4 -4 -4 -4 -4 -3 -3 -3 -------- Run | Yrd Mat Sub Mat Gar Fac Gar Fac DSF Fac Gar Fac DSF Fac Was Fac Gar Fac Ext Res Qua Sec Hostile Shots Fired 1166 | . 31 86 98 132 72 31 . 7 3 86 . 47 44 . 2 50 2 54 173 198 50 Missed 384 | . 6 21 32 28 24 13 . 3 2 29 . 21 22 . 2 23 1 17 49 70 21 Damage Taken 15431 | . 277 1911 912 1264 679 353 . 160 117 737 362 802 411 . . 608 130 640 3383 2257 428 Core 2439 | . 26 139 108 249 30 61 . . . 53 171 . 14 . . 187 43 47 573 548 190 Absorbed by Shields 384 | . . . . . . 17 . . . 191 . . . . . . . 176 . . . Redirected to Shielding 125 | . 3 14 . . . 75 . 33 . . . . . . . . . . . . . Ignored by Resistances 312 | . . 30 94 188 . . . . . . . . . . . . . . . . . Regen/Repaired (Parts) 334 | . . . . . 108 . . . . . . . . 23 169 34 . . . . . Core Remaining (%) 72 | 100 . 34 . 35 . 87 . 100 . . . 77 . . . . . 74 . . . Volleys Fired 507 | . 35 114 25 36 46 2 . 1 . . . 7 . . . 16 9 71 110 35 . Largest 3 | . 2 2 2 1 1 1 . 1 . . . 1 . . . 1 1 1 1 3 . Hottest 225 | . 40 99 58 44 25 45 . 5 . . . 43 . . . 65 65 225 113 180 . Shots Fired 631 | . 63 165 39 38 47 2 . 1 . . . 7 . . . 16 9 72 110 62 . Gun 287 | . 56 84 31 2 41 . . . . . . . . . . 12 5 35 9 12 . Cannon 247 | . . 66 . 36 . . . . . . . . . . . 4 . 1 94 46 . Launcher 60 | . 7 15 8 . . 1 . . . . . 7 . . . . . 11 7 4 . Special 37 | . . . . . 6 1 . 1 . . . . . . . . 4 25 . . . Kinetic 335 | . 56 111 39 38 41 . . . . . . . . . . 4 . . . 46 . Thermal 208 | . . 52 . . . . . . . . . . . . . 12 5 36 91 12 . Explosive 39 | . 7 2 . . . 1 . . . . . 7 . . . . . 11 7 4 . Electromagnetic 12 | . . . . . . . . . . . . . . . . . . . 12 . . Robot Hit Streak 29 | . 10 29 6 13 6 6 . 2 . . . 1 . . . 1 5 13 25 15 . Robot Miss Streak 5 | . 3 4 3 3 3 5 . . . . . 3 . . . 3 1 3 3 4 . Penetration Max . | . . . . . . . . . . . . . . . . . . . . . . Secondary Targets 1 | . . . 1 . . . . . . . . . . . . . . . . . . Max Gunslinging Chain 1 | . . . 1 . . . . . . . . . . . . . . . . . . Capacitor 111 | . . . . . . . . . . . . . . . . . . 13 98 . . Shots Hit Robots 526 | . 40 93 42 37 83 4 . 2 5 3 . 13 7 . 2 2 8 58 83 44 . Core Hits 284 | . 34 36 29 10 17 4 . . 3 3 . 16 3 . . 5 6 46 47 24 1 Critical Kills 8 | . . 1 2 . 2 . . . . . . . . . . . . . 3 . . Critical Parts Destroyed 9 | . . . 3 1 5 . . . . . . . . . . . . . . . . Critical Strikes 34 | . . 2 5 4 7 . . . . 1 . 3 2 . . . . . 4 6 . Meltdown 3 | . . . . . . . . . . . . . . . . . . . 3 . . Destroy 4 | . . 2 1 . 1 . . . . . . . . . . . . . . . . Blast 9 | . . . . 3 . . . . . . . . . . . . . . . 6 . Smash 11 | . . . 4 1 6 . . . . . . . . . . . . . . . . Sever 7 | . . . . . . . . . . 1 . 3 2 . . . . . 1 . . Melee Attacks 241 | . . 34 24 15 100 3 . 3 12 4 1 15 12 . 2 . . 6 10 . . Impact 179 | . . 34 24 15 100 3 . 3 . . . . . . . . . . . . . Slashing 60 | . . . . . . . . . 12 4 1 15 12 . . . . 6 10 . . Piercing . | . . . . . . . . . . . . . . . . . . . . . . Sneak Attacks 16 | . . . 3 . 5 . . . 3 . . 1 1 . . . . 3 . . . Combat Hostiles 1 | . . . . . . . . . . . . . 1 . . . . . . . . Follow-up Attacks 5 | . . . . . . . . . . . . 3 2 . . . . . . . . Damage Inflicted 24561 | . 1234 2645 2790 800 3211 320 . 43 485 176 . 1150 190 . . 300 210 3517 5211 2217 62 Guns 3421 | . 407 609 441 . 426 . . . . . . . . . . 103 121 785 208 321 . Cannons 5648 | . . 908 . 503 . . . . . . . . . . . . . 36 2970 1231 . Explosions 9330 | . 827 1128 1459 . . 225 . . . . . 693 . . . 197 89 2314 1735 663 . Melee 6098 | . . . 890 297 2785 95 . 43 485 176 . 457 190 . . . . 382 298 . . Ramming 64 | . . . . . . . . . . . . . . . . . . . . 2 62 Kinetic 6533 | . 407 2395 1571 503 426 . . . . . . . . . . . . . . 1231 . Thermal 4572 | . . 213 329 . . . . . . . . . . . . 103 121 821 2664 321 . Explosive 6780 | . 827 37 . . . 225 . . . . . 693 . . . 197 89 2314 1735 663 . Electromagnetic 514 | . . . . . . . . . . . . . . . . . . . 514 . . Impact 4110 | . . . 890 297 2785 95 . 43 . . . . . . . . . . . . . Slashing 1988 | . . . . . . . . . 485 176 . 457 190 . . . . 382 298 . . Piercing . | . . . . . . . . . . . . . . . . . . . . . . Highest Corruption 24 | . . . . 9 5 7 . . 1 1 2 2 . . . . . 5 14 24 10 Average Corruption 6 | . . . . 7 3 5 . . 1 1 1 2 . . . . . 4 9 12 5 Corruption Purged . | . . . . . . . . . . . . . . . . . . . . . . Corruption Blocked . | . . . . . . . . . . . . . . . . . . . . . . Effects 125 | . . . . 18 18 4 . . 2 . 1 2 . . . . . 13 39 25 3 Message Errors 27 | . . . . 3 3 . . . . . 1 . . . . . . 2 9 8 1 Matter Fused 26 | . . . . 4 3 . . . . . . . . . . . . 2 11 5 1 Heat Flow Errors 12 | . . . . . 4 . . . . . . . . . . . . 1 4 3 . Energy Discharges 8 | . . . . 3 . 1 . . 1 . . 1 . . . . . . 1 . 1 Parts Rejected 1 | . . . . 1 . . . . . . . . . . . . . . . . . Parts Fused 2 | . . . . 1 1 . . . . . . . . . . . . . . . . Data Loss (minor) 22 | . . . . 3 3 1 . . 1 . . 1 . . . . . 4 7 2 . Data Loss (major) 9 | . . . . 1 2 1 . . . . . . . . . . . 2 3 . . Misfires 6 | . . . . 2 1 . . . . . . . . . . . . 1 1 1 . Alerts 4 | . . . . . 1 1 . . . . . . . . . . . 1 1 . . Misdirections 2 | . . . . . . . . . . . . . . . . . . . 1 1 . Weapon Failures 6 | . . . . . . . . . . . . . . . . . . . 1 5 . Overload Shots 15 | . . . . . . . . . . . . . . . . . . 15 . . . Effects 2 | . . . . . . . . . . . . . . . . . . 2 . . . Energy Bleed 1 | . . . . . . . . . . . . . . . . . . 1 . . . Heat Surge 1 | . . . . . . . . . . . . . . . . . . 1 . . . Overflow Damage 2020 | . 25 . 488 35 836 23 . . 39 . . 65 . . . 42 . 103 230 132 2 Projectiles 297 | . . . . . . . . . . . . . . . . . . . 172 125 . Explosions 354 | . 25 . 144 . . . . . . . . 65 . . . 42 . 32 39 7 . Melee 1369 | . . . 344 35 836 23 . . 39 . . . . . . . . 71 19 . 2 Knockbacks 35 | . . 8 2 2 9 1 . . . . . . . . . . . . . 13 . Impact 12 | . . . 2 . 9 1 . . . . . . . . . . . . . . . Kinetic 23 | . . 8 . 2 . . . . . . . . . . . . . . . 13 . Secondary . | . . . . . . . . . . . . . . . . . . . . . . Self-Inflicted Damage 649 | . . 61 13 . . 95 . . . . . 33 . . . 105 115 . 141 60 26 Shots 14 | . . 2 1 . . 4 . . . . . 1 . . . 1 2 . 2 1 . Rammed 16 | . . . . . . . . . . . . . . . . . . . . 2 14 Targets Rammed 16 | . . . . . . . . . . . . . . . . . . . . 2 14 Kicked . | . . . . . . . . . . . . . . . . . . . . . . Crushed . | . . . . . . . . . . . . . . . . . . . . . . Highest Temperature 762 | . 36 3 116 18 208 . . . . . . . . . . . 208 762 404 167 269 Average Temperature 90 | . 11 2 34 7 42 . . . . . . . . . . . 102 198 114 56 106 Received Heat Transfer 2233 | . 126 348 423 261 225 . . . . 30 . . 63 . . 69 . 76 162 429 21 Effects 8 | . . . . . . . . . . . . . . . . . . 4 4 . . Shutdowns 2 | . . . . . . . . . . . . . . . . . . 2 . . . Energy Bleed 1 | . . . . . . . . . . . . . . . . . . . 1 . . Interference 5 | . . . . . . . . . . . . . . . . . . 2 3 . . Siege Activations . | . . . . . . . . . . . . . . . . . . . . . . Robots Corrupted . | . . . . . . . . . . . . . . . . . . . . . . Combat Hostiles . | . . . . . . . . . . . . . . . . . . . . . . Parts Fried 22 | . . . 5 1 10 . . . . . . . . . . . . . 6 . . Impact Corruptions 53 | . . . 12 3 36 1 . . . . . . . . . . . . . . 1 Robots Melted 3 | . . . . . . . . . . . . . . . . . . . 3 . . Combat Hostiles 3 | . . . . . . . . . . . . . . . . . . . 3 . . Parts Melted 3 | . . . . . . . . . . . . . . . . . . 1 2 . . Heat Transferred 5035 | . . 262 200 . . . . . . . . . . . . 148 148 1049 2553 675 . Parts Sabotaged . | . . . . . . . . . . . . . . . . . . . . . . Parts Stolen . | . . . . . . . . . . . . . . . . . . . . . . Parts Stripped . | . . . . . . . . . . . . . . . . . . . . . . Power Chain Reactions . | . . . . . . . . . . . . . . . . . . . . . . Alert | -11 -10 -10 -8 -8 -7 -7 -6 -6 -5 -5 -5 -5 -4 -4 -4 -4 -4 -4 -3 -3 -3 ------- Run | Yrd Mat Sub Mat Gar Fac Gar Fac DSF Fac Gar Fac DSF Fac Was Fac Gar Fac Ext Res Qua Sec Peak Influence 663 | . 333 . 663 542 542 456 239 180 207 200 111 449 314 111 78 420 241 614 559 272 98 Initial 311 | . . . . 226 284 311 239 167 94 130 94 77 224 109 63 54 147 19 243 272 63 Average 244 | . 96 . 376 370 383 382 239 162 156 168 99 261 247 96 77 241 167 284 303 74 66 Maximum Alert Level 2 | . 1 . 2 2 2 2 1 . 1 1 . 2 1 . . 2 1 2 2 1 . Low Security (%) 42 | . 88 . 17 . . . . 100 69 84 100 25 . 100 100 35 64 51 10 87 100 Level 1 38 | . 11 . 35 84 56 56 100 . 30 15 . 51 100 . . 53 35 9 68 12 . Level 2 18 | . . . 46 15 43 43 . . . . . 22 . . . 10 . 39 21 . . Level 3 . | . . . . . . . . . . . . . . . . . . . . . . Level 4 . | . . . . . . . . . . . . . . . . . . . . . . Level 5 . | . . . . . . . . . . . . . . . . . . . . . . High Security . | . . . . . . . . . . . . . . . . . . . . . . Max Security . | . . . . . . . . . . . . . . . . . . . . . . Sterilizations 1 | . . . . . . . . . . . . 1 . . . . . . . . . Squads Dispatched 29 | . 2 . 4 . 3 . . . 3 . . 2 . . . . 2 4 6 3 . Investigation 7 | . 2 . . . . . . . 1 . . . . . . . 1 2 1 . . Extermination 5 | . . . . . 2 . . . . . . . . . . . . . 2 1 . Reinforcement 13 | . . . 2 . 1 . . . 2 . . 2 . . . . 1 2 3 . . Assault . | . . . . . . . . . . . . . . . . . . . . . . Garrison 4 | . . . 2 . . . . . . . . . . . . . . . . 2 . Intercept . | . . . . . . . . . . . . . . . . . . . . . . Searches Triggered . | . . . . . . . . . . . . . . . . . . . . . . Construction Impeded 3 | . . . 1 . . . . . . . . . . . . . 1 1 . . . Haulers Reinforced . | . . . . . . . . . . . . . . . . . . . . . . Active Scanning Responses . | . . . . . . . . . . . . . . . . . . . . . . Cargo Convoy Interrupts . | . . . . . . . . . . . . . . . . . . . . . . Stealth | -11 -10 -10 -8 -8 -7 -7 -6 -6 -5 -5 -5 -5 -4 -4 -4 -4 -4 -4 -3 -3 -3 --------- Run | Yrd Mat Sub Mat Gar Fac Gar Fac DSF Fac Gar Fac DSF Fac Was Fac Gar Fac Ext Res Qua Sec Distress Signals 13 | . 2 . 3 . 3 . . . . . . . . . . . 1 3 . 1 . Communications Jammed . | . . . . . . . . . . . . . . . . . . . . . . Distress Signals . | . . . . . . . . . . . . . . . . . . . . . . Times Spotted 270 | . 18 18 20 7 26 8 . 2 1 11 1 16 17 4 1 13 5 40 37 15 10 Peak Tracking Total 15 | . 5 2 7 5 6 6 . 1 3 10 1 6 15 3 1 5 4 8 6 4 8 Tactical Retreats 15 | . . . . . 2 1 . . 2 . . 3 2 . . 1 . . 1 2 1 Traps | -11 -10 -10 -8 -8 -7 -7 -6 -6 -5 -5 -5 -5 -4 -4 -4 -4 -4 -4 -3 -3 -3 ------- Run | Yrd Mat Sub Mat Gar Fac Gar Fac DSF Fac Gar Fac DSF Fac Was Fac Gar Fac Ext Res Qua Sec Traps Triggered 26 | . 1 4 . 2 1 3 . 2 2 3 1 . 1 . . . . 4 . 2 . Indirectly . | . . . . . . . . . . . . . . . . . . . . . . Trap Hack Attempts . | . . . . . . . . . . . . . . . . . . . . . . Triggered . | . . . . . . . . . . . . . . . . . . . . . . Disarmed . | . . . . . . . . . . . . . . . . . . . . . . Reprogrammed . | . . . . . . . . . . . . . . . . . . . . . . Reused . | . . . . . . . . . . . . . . . . . . . . . . Traps Extracted . | . . . . . . . . . . . . . . . . . . . . . . Installed . | . . . . . . . . . . . . . . . . . . . . . . Triggered . | . . . . . . . . . . . . . . . . . . . . . . Machines | -11 -10 -10 -8 -8 -7 -7 -6 -6 -5 -5 -5 -5 -4 -4 -4 -4 -4 -4 -3 -3 -3 ---------- Run | Yrd Mat Sub Mat Gar Fac Gar Fac DSF Fac Gar Fac DSF Fac Was Fac Gar Fac Ext Res Qua Sec Machines Disabled 30 | . 5 1 6 3 . 1 . . . . . . . . . 4 4 3 1 2 . Max in Single Turn 4 | . 4 1 3 1 . 1 . . . . . . . . . 2 4 2 1 1 . Garrison Access 3 | . . . . . . . . . . . . . 1 . . . 1 . 1 . . Garrison Relay 6 | . . . . 2 . 1 . . . 1 . . . . . 2 . . . . . Phase Generator 1 | . . . . . . . . . . . . . . . . 1 . . . . . Machines Repaired . | . . . . . . . . . . . . . . . . . . . . . . Machines Dismantled . | . . . . . . . . . . . . . . . . . . . . . . Machines Sabotaged . | . . . . . . . . . . . . . . . . . . . . . . Overloaded Fab Kills . | . . . . . . . . . . . . . . . . . . . . . . Hacking | -11 -10 -10 -8 -8 -7 -7 -6 -6 -5 -5 -5 -5 -4 -4 -4 -4 -4 -4 -3 -3 -3 --------- Run | Yrd Mat Sub Mat Gar Fac Gar Fac DSF Fac Gar Fac DSF Fac Was Fac Gar Fac Ext Res Qua Sec Machines Accessed 57 | . 7 1 2 1 11 1 3 . 3 1 2 . 2 . 2 . 4 6 5 6 . Terminals 41 | . 7 . 1 1 6 1 2 . 2 1 2 . 1 . . . 2 6 4 5 . Fabricators 2 | . . . . . . . 1 . . . . . . . . . 1 . . . . Repair Stations 5 | . . . . . 4 . . . . . . . . . 1 . . . . . . Recycling Units . | . . . . . . . . . . . . . . . . . . . . . . Scanalyzers . | . . . . . . . . . . . . . . . . . . . . . . Garrison Access 8 | . . . 1 . 1 . . . 1 . . . 1 . 1 . 1 . 1 1 . Total Hacks 132 | . 20 9 5 3 28 1 5 . 11 1 3 . 2 . 7 . 8 11 8 10 . Successful 68 | . 9 9 2 1 13 . 1 . 6 . 1 . 2 . 5 . 5 8 2 4 . Failed 64 | . 11 . 3 2 15 1 4 . 5 1 2 . . . 2 . 3 3 6 6 . Catastrophic 21 | . 1 . 1 1 2 1 1 . 3 1 1 . . . . . 1 3 3 2 . Database Lockouts . | . . . . . . . . . . . . . . . . . . . . . . Manual 63 | . 17 . 3 . 18 . 4 . 8 . 1 . . . . . 3 2 7 . . Terminals 91 | . 20 . 3 3 17 1 3 . 9 1 3 . 1 . . . 3 11 7 9 . Fabricators 6 | . . . . . . . 2 . . . . . . . . . 4 . . . . Repair Stations 16 | . . . . . 10 . . . . . . . . . 6 . . . . . . Recycling Units . | . . . . . . . . . . . . . . . . . . . . . . Scanalyzers . | . . . . . . . . . . . . . . . . . . . . . . Garrison Access 10 | . . . 2 . 1 . . . 2 . . . 1 . 1 . 1 . 1 1 . Terminal Hacks 33 | . 4 9 1 1 3 . 1 . 2 . 1 . 1 . . . . 7 . 3 . Record 13 | . . 8 . . . . . . 1 . . . . . . . . 3 . 1 . Part Schematic 1 | . . . . . 1 . . . . . . . . . . . . . . . . Robot Analysis 1 | . 1 . . . . . . . . . . . . . . . . . . . . Open Door 3 | . . . . . . . . . . . . . . . . . . 3 . . . Open DSF 3 | . . . . . . . 1 . . . 1 . 1 . . . . . . . . Branch Access Points 1 | . 1 . . . . . . . . . . . . . . . . . . . . Terminal Index 4 | . 2 . . . 1 . . . 1 . . . . . . . . . . . . Fabricator Index 1 | . . . . . 1 . . . . . . . . . . . . . . . . Unreport Threat 3 | . . . 1 . . . . . . . . . . . . . . . . 2 . Recall Reinforcements 1 | . . . . . . . . . . . . . . . . . . 1 . . . Security Stations 1 | . . . . 1 . . . . . . . . . . . . . . . . . Derelict Proto ID Bank 1 | . . 1 . . . . . . . . . . . . . . . . . . . Fabricator Hacks 4 | . . . . . . . . . . . . . . . . . 4 . . . . Load Schematic 2 | . . . . . . . . . . . . . . . . . 2 . . . . Build 2 | . . . . . . . . . . . . . . . . . 2 . . . . Repair Station Hacks 10 | . . . . . 6 . . . . . . . . . 4 . . . . . . Scan Component 6 | . . . . . 4 . . . . . . . . . 2 . . . . . . Repair 4 | . . . . . 2 . . . . . . . . . 2 . . . . . . Recycling Unit Hacks . | . . . . . . . . . . . . . . . . . . . . . . Scanalyzer . | . . . . . . . . . . . . . . . . . . . . . . Garrison Access Hacks 9 | . . . 1 . 1 . . . 2 . . . 1 . 1 . 1 . 1 1 . Unlock Access 5 | . . . 1 . 1 . . . 1 . . . . . 1 . . . . 1 . Seal Access 3 | . . . . . . . . . . . . . 1 . . . 1 . 1 . . Coupler Status 1 | . . . . . . . . . 1 . . . . . . . . . . . . Unauthorized Hacks 12 | . 5 . . . 3 . . . 2 . . . . . . . . 1 1 . . Terminals 12 | . 5 . . . 3 . . . 2 . . . . . . . . 1 1 . . Botnet 12 | . 5 . . . 3 . . . 2 . . . . . . . . 1 1 . . Fabricators . | . . . . . . . . . . . . . . . . . . . . . . Repair Stations . | . . . . . . . . . . . . . . . . . . . . . . Recycling Units . | . . . . . . . . . . . . . . . . . . . . . . Scanalyzers . | . . . . . . . . . . . . . . . . . . . . . . Garrison Access . | . . . . . . . . . . . . . . . . . . . . . . Data Cores Recovered 1 | . . . . . 1 . . . . . . . . . . . . . . . . Used 1 | . . . . . 1 . . . . . . . . . . . . . . . . Hacking Detections 47 | . 7 . 2 1 9 1 3 . 3 1 2 . . . 2 . 3 4 4 5 . Full Trace Events 5 | . 1 . . . . . . . 1 . . . . . . . 1 1 1 . . Feedback Events 1 | . . . . . . . . . . . . . . . . . . . 1 . . Corruption 1 | . . . . . . . . . . . . . . . . . . . 1 . . Feedback Blocked . | . . . . . . . . . . . . . . . . . . . . . . Robot Schematics Acquired . | . . . . . . . . . . . . . . . . . . . . . . Robots Built . | . . . . . . . . . . . . . . . . . . . . . . Authchips . | . . . . . . . . . . . . . . . . . . . . . . Time . | . . . . . . . . . . . . . . . . . . . . . . Total Robot Build Rating . | . . . . . . . . . . . . . . . . . . . . . . Part Schematics Acquired 1 | . . . . . 1 . . . . . . . . . . . . . . . . Parts Built 2 | . . . . . . . . . . . . . . . . . 2 . . . . Authchips 1 | . . . . . . . . . . . . . . . . . 1 . . . . Time 146 | . . . . . . . . . . . . . . . . . 146 . . . . Total Part Build Rating 6 | . . . . . . . . . . . . . . . . . 6 . . . . Parts Repaired 4 | . . . . . 2 . . . . . . . . . 2 . . . . . . Time 218 | . . . . . 70 . . . . . . . . . 148 . . . . . . Parts Recycled . | . . . . . . . . . . . . . . . . . . . . . . Recycled Matter . | . . . . . . . . . . . . . . . . . . . . . . Retrieved Matter . | . . . . . . . . . . . . . . . . . . . . . . Retrieved Components . | . . . . . . . . . . . . . . . . . . . . . . Parts Scanalyzed . | . . . . . . . . . . . . . . . . . . . . . . Part Schematics Acquired . | . . . . . . . . . . . . . . . . . . . . . . Parts Damaged . | . . . . . . . . . . . . . . . . . . . . . . Bothacking | -11 -10 -10 -8 -8 -7 -7 -6 -6 -5 -5 -5 -5 -4 -4 -4 -4 -4 -4 -3 -3 -3 ------------ Run | Yrd Mat Sub Mat Gar Fac Gar Fac DSF Fac Gar Fac DSF Fac Was Fac Gar Fac Ext Res Qua Sec Used RIF Installer 4 | . . . . 1 . 1 . . . 1 . . . . . 1 . . . . . Command Fork 1 | . . . . . . . . . . 1 . . . . . . . . . . . Threat Obfuscator 1 | . . . . . . . . . . . . . . . . 1 . . . . . Zone Cloak 1 | . . . . . . 1 . . . . . . . . . . . . . . . Robots Hacked 20 | . . . . . 6 1 . 1 . . . . . . 1 . 4 7 . . . Non-combat 2 | . . . . . 1 . . . . . . . . . . . . 1 . . . Combat 18 | . . . . . 5 1 . 1 . . . . . . 1 . 4 6 . . . Robot Hacks Applied 20 | . . . . . 6 1 . 1 . . . . . . 1 . 4 7 . . . parse_system 4 | . . . . . 1 . . . . . . . . . . . . 3 . . . find_shortcuts 1 | . . . . . . . . . . . . . . . . . . 1 . . . overload_power 1 | . . . . . 1 . . . . . . . . . . . . . . . . disable_weapons 1 | . . . . . 1 . . . . . . . . . . . . . . . . go_dormant 1 | . . . . . 1 . . . . . . . . . . . . . . . . overwrite_iff 4 | . . . . . 2 1 . . . . . . . . . . 1 . . . . streamctrl_high 2 | . . . . . . . . . . . . . . . . . 2 . . . . formatsys_high 6 | . . . . . . . . 1 . . . . . . 1 . 1 3 . . . Relay Couplers Released 23 | . . . . 8 . 5 . . . 4 . . . . . 6 . . . . . Machine Destruction 23 | . . . . 8 . 5 . . . 4 . . . . . 6 . . . . . Attached 9 | . . . . . 2 . . 1 . . . . . . 1 3 2 . . . . Fabnet Peak Effective % . | . . . . . . . . . . . . . . . . . . . . . . Robots Rewired 10 | . . . . . . . . . . . . . . . . . . 10 . . . Allies Hacked 1 | . . . . . . . . . . . . . . . . . . 1 . . . Hacks Repelled . | . . . . . . . . . . . . . . . . . . . . . . Allies | -11 -10 -10 -8 -8 -7 -7 -6 -6 -5 -5 -5 -5 -4 -4 -4 -4 -4 -4 -3 -3 -3 -------- Run | Yrd Mat Sub Mat Gar Fac Gar Fac DSF Fac Gar Fac DSF Fac Was Fac Gar Fac Ext Res Qua Sec Total Allies 45 | . . . . . 2 1 . 1 . . . . . 18 1 . 4 18 . . . Largest Group 18 | . . . . . 1 1 . 1 1 . . . . 18 12 12 1 11 1 . . Highest-Rated Group 638 | . . . . . 16 32 . 90 90 . . . . 638 459 459 49 522 47 . . Highest-Rated Ally 159 | . . . . . 16 32 . 90 90 . . . . 50 50 50 49 159 47 . . Total Orders 2 | . . . . . . . . . 2 . . . . . . . . . . . . STAY 1 | . . . . . . . . . 1 . . . . . . . . . . . . FOLLOW 1 | . . . . . . . . . 1 . . . . . . . . . . . . Ally Attacks 365 | . . . . . 3 . . 6 1 . . . . 112 . 56 12 175 . . . Total Damage 12021 | . . . . . 31 . . 246 45 . . . . 5189 . 1324 381 4805 . . . Kills 45 | . . . . . . . . 1 . . . . . 9 . 10 1 24 . . . Allies Corrupted 1 | . . . . . . . . . . . . . . . . . . 1 . . . Allies Melted . | . . . . . . . . . . . . . . . . . . . . . . Intel | -11 -10 -10 -8 -8 -7 -7 -6 -6 -5 -5 -5 -5 -4 -4 -4 -4 -4 -4 -3 -3 -3 ------- Run | Yrd Mat Sub Mat Gar Fac Gar Fac DSF Fac Gar Fac DSF Fac Was Fac Gar Fac Ext Res Qua Sec Robot Analysis Total 1 | . 1 . . . . . . . . . . . . . . . . . . . . Derelict Logs Recovered 2 | . . 2 . . . . . . . . . . . . . . . . . . . Drone Launches . | . . . . . . . . . . . . . . . . . . . . . . Drone Recoveries . | . . . . . . . . . . . . . . . . . . . . . . Exploration | -11 -10 -10 -8 -8 -7 -7 -6 -6 -5 -5 -5 -5 -4 -4 -4 -4 -4 -4 -3 -3 -3 ------------- Run | Yrd Mat Sub Mat Gar Fac Gar Fac DSF Fac Gar Fac DSF Fac Was Fac Gar Fac Ext Res Qua Sec Turns Passed 12796 | . 910 4151 539 650 1032 186 57 108 259 92 52 127 163 364 279 313 411 1001 1352 596 154 Spaces Moved 10876 | 1 595 2530 330 314 1193 222 88 101 480 161 128 128 304 331 185 494 807 652 940 649 243 Core 114 | . . . . 2 . . . . . . . . 1 . . . . . . 104 7 Treads 2041 | . . 1739 . 284 18 . . . . . . . . . . . . . . . . Legs 569 | 1 5 . . . . . . . . . . . . . . . . 261 302 . . Wheels 1739 | . 590 791 330 28 . . . . . . . . . . . . . . . . . Hover 2055 | . . . . . . . . . . . . . . . . . 440 391 638 545 41 Flight 4358 | . . . . . 1175 222 88 101 480 161 128 128 303 331 185 494 367 . . . 195 Fastest Speed 25 | 120 95 95 95 107 40 40 34 34 34 34 34 34 37 37 37 25 28 30 40 50 45 Average Speed 80 | 120 96 142 109 163 41 52 34 34 36 34 34 38 38 37 37 33 36 96 83 65 49 Slowest Speed 800 | 120 120 160 119 800 160 80 34 34 86 34 34 39 450 37 37 111 120 260 290 150 70 Overloaded Moves . | . . . . . . . . . . . . . . . . . . . . . . Propulsion Burnouts . | . . . . . . . . . . . . . . . . . . . . . . Robots Hopped 21 | . . . . . 8 1 . . 3 . . . 2 . . 1 2 . . . 4 Cave-ins Triggered 1 | . . . . . . . . . . . . . . . . . . . 1 . . Exploration Rate (%) 38 | 3 89 68 29 45 33 38 3 86 16 32 8 64 9 97 6 56 17 58 26 58 16 Regions Visited 21 Branch Regions 4 Pre-discovered Areas 1 | . . 1 . . . . . . . . . . . . . . . . . . . Known Exits Taken 6 | . . . 1 . 1 . 1 . 1 . 1 . . . 1 . . . . . . Unknown Exits Taken 7 | 1 1 1 . . . . . . . . . . . . . . 1 1 1 1 . Scrap Searched 16 | . . 16 . . . . . . . . . . . . . . . . . . . Spaces Dug 132 | . . 25 2 . 25 . . 1 7 . 1 . . . . . . . 45 26 . Terrain Destroyed 719 | . 34 146 92 . 25 5 . 1 7 . 1 87 . . . 66 33 68 85 69 . Melee 40 | . . 4 2 . 25 . . 1 7 . 1 . . . . . . . . . . Projectile 55 | . . 22 1 . . . . . . . . . . . . . . 5 17 10 . AOE 624 | . 34 120 89 . . 5 . . . . . 87 . . . 66 33 63 68 59 . Terrain Rammed . | . . . . . . . . . . . . . . . . . . . . . . Walls Destroyed . | . . . . . . . . . . . . . . . . . . . . . . Machines Disabled . | . . . . . . . . . . . . . . . . . . . . . . Actions | -11 -10 -10 -8 -8 -7 -7 -6 -6 -5 -5 -5 -5 -4 -4 -4 -4 -4 -4 -3 -3 -3 --------- Run | Yrd Mat Sub Mat Gar Fac Gar Fac DSF Fac Gar Fac DSF Fac Was Fac Gar Fac Ext Res Qua Sec Total 14069 | . 874 2884 452 397 1578 280 113 168 536 190 135 167 334 571 395 621 913 957 1476 758 270 Wait 1595 | . 211 74 20 6 166 . 18 34 36 . . 2 20 220 194 80 45 127 307 24 11 Move 10812 | . 594 2529 329 313 1176 218 87 100 473 159 127 127 300 330 184 490 802 651 939 648 236 Hop 20 | . . . . . 8 1 . . 3 . . . 2 . . 1 2 . . . 3 Pick Up 131 | . 9 36 16 6 13 1 1 3 3 3 2 2 . 3 2 5 5 2 14 5 . Fast Attach 176 | . 5 15 5 7 17 . 2 1 3 1 1 7 . 9 4 6 21 10 37 19 6 Attach 61 | . . 9 6 4 9 . 2 1 2 1 1 1 3 . 1 4 5 2 9 1 . Detach 47 | . 2 2 2 1 7 . 2 1 . . 1 1 . 2 3 4 7 5 7 . . Swap 98 | . 11 21 8 4 8 2 1 3 . . . 4 1 . 2 7 1 8 12 5 . Drop 203 | . 7 42 17 5 28 1 . 3 4 4 2 4 . 7 3 8 15 5 31 17 . Fire 507 | . 35 114 25 36 46 2 . 1 . . . 7 . . . 16 9 71 110 35 . Melee 234 | . . 34 24 15 100 3 . 3 12 4 1 12 8 . 2 . . 6 10 . . Ram 16 | . . . . . . . . . . . . . . . . . . . . 2 14 Kick . | . . . . . . . . . . . . . . . . . . . . . . Crush . | . . . . . . . . . . . . . . . . . . . . . . Escape Stasis 140 | . . . . . . 52 . 18 . 18 . . . . . . . 50 . 2 . Rewire 21 | . . . . . . . . . . . . . . . . . 1 20 . . . Trap . | . . . . . . . . . . . . . . . . . . . . . . Miscellaneous 8 | . . 8 . . . . . . . . . . . . . . . . . . . Route ------- -11/Scrapyard -10/Materials (discovered 5 exits: [*Mat x2] / *Min x2 / *Sub) -10/Subcaves -8/Materials (discovered 2 exits: *Fac / Gar) -8/Garrison -7/Factory (discovered 2 exits: *Low / Gar) -7/Garrison -6/Factory (discovered 2 exits: *Low / DSF) -6/DSF -5/Factory (discovered 2 exits: *Fac / Gar) -5/Garrison -5/Factory -5/DSF -4/Factory -4/Waste -4/Factory -4/Garrison -4/Factory -4/Extension (discovered 2 exits: *Res / [*Cet]) -3/Research -3/Quarantine (discovered 2 exits: [*Sec] / Gar) -3/Section 7 History --------- Turn | Location | Event 1 | -11/Scrapyard | Discovered new exit (range 0) 1 | -11/Scrapyard | Entered Materials 55 | -10/Materials | Discovered new exit (range 5) 124 | -10/Materials | Discovered new exit (range 11) 223 | -10/Materials | Identified exit to Mines 306 | -10/Materials | Build established: Mutant 378 | -10/Materials | Discovered new exit (range 10) 899 | -10/Materials | Discovered new exit (range 14) 911 | -10/Materials | Entered Subcaves 1119 | -10/Subcaves | Lost 4 parts (1p1n1u1w) 1174 | -10/Subcaves | Ambushed by Subdwellers from Twisted Machinery 1573 | -10/Subcaves | Learned location of 1 exit from Materials 1683 | -10/Subcaves | Build established: Subdweller-Mutant 2425 | -10/Subcaves | Shifting Twisted Machinery released Mak. Hammer 2723 | -10/Subcaves | Shifting Twisted Machinery released Battle Rifle 2734 | -10/Subcaves | Shifting Twisted Machinery released Piercing Trap 3056 | -10/Subcaves | Learned location of Zion (-7) 3056 | -10/Subcaves | Met a Zionite searching for "candidates" 3091 | -10/Subcaves | Discovered new exit (range 12) 3099 | -10/Subcaves | Learned Materials terminal intel 3133 | -10/Subcaves | A swath of the cavern ceiling suddenly collapsed 3303 | -10/Subcaves | Build established: Mutant 3532 | -10/Subcaves | Lost 3 parts (1n1u1w) 3884 | -10/Subcaves | Build established: Derelict-Mutant 3898 | -10/Subcaves | Core integrity fell below 50% 4096 | -10/Subcaves | Visited 4L-MR0's lab 4118 | -10/Subcaves | Found Flightbrick 4821 | -10/Subcaves | Build established: Mutant 5062 | -10/Subcaves | Entered Materials 5062 | -8/Materials | Evolved 4 slots: Propulsion x1, Utility x3 5063 | -8/Materials | Identified exit to Factory 5064 | -8/Materials | Loaded intel: 12 terminal locations 5142 | -8/Materials | Garrison activated, responded to threat 5279 | -8/Materials | Garrison activated, responded to threat 5578 | -8/Materials | Identified exit to Garrison 5601 | -8/Materials | Entered Garrison 5601 | -8/Garrison | Warlord forces raided the area 5618 | -8/Garrison | Triggered checkpoint 5620 | -8/Garrison | Triggered checkpoint 5628 | -8/Garrison | Triggered checkpoint 5682 | -8/Garrison | Triggered checkpoint 5691 | -8/Garrison | Rescued a captive Derelict 5692 | -8/Garrison | Lost 7 parts (3n2u2w) 5696 | -8/Garrison | Rescued a captive Derelict 5713 | -8/Garrison | Core integrity fell below 50% 5722 | -8/Garrison | Triggered checkpoint 5777 | -8/Garrison | Warlord forces retreated 5803 | -8/Garrison | Garrison Relay disabled 5909 | -8/Garrison | Installed Relay Interface Framework 6061 | -8/Garrison | Build established: Scavenger-Mutant 6140 | -8/Garrison | Learned Factory security intel 6154 | -8/Garrison | Garrison Relay disabled 6232 | -8/Garrison | Discovered exit to Factory (range 13) 6251 | -8/Garrison | Entered Factory 6251 | -7/Factory | Evolved 2 slots: Propulsion x1, Utility x1 6301 | -7/Factory | Attached Flightbrick, gained temporary slots: Utility x3 6997 | -7/Factory | Repaired Imp. Sensor Array 7031 | -7/Factory | Repaired Battle Rifle 7041 | -7/Factory | Discovered new exit (range 5) 7043 | -7/Factory | Identified exit to Lower Caves 7169 | -7/Factory | Found Prototype Launcher 7169 | -7/Factory | Identified Rocket Array 7283 | -7/Factory | Identified exit to Garrison 7283 | -7/Factory | Entered Garrison 7312 | -7/Garrison | Triggered checkpoint 7316 | -7/Garrison | Garrison Relay disabled 7370 | -7/Garrison | Triggered checkpoint 7412 | -7/Garrison | Discovered new exit (range 13) 7445 | -7/Garrison | Expanded RIF knowledge: Zone Cloak 7458 | -7/Garrison | Triggered checkpoint 7468 | -7/Garrison | Identified exit to Factory 7469 | -7/Garrison | Entered Factory 7469 | -6/Factory | Evolved 2 slots: Propulsion x1, Utility x1 7521 | -6/Factory | Discovered new exit (range 10) 7524 | -6/Factory | Identified exit to Lower Caves 7526 | -6/Factory | Identified exit to DSF 7526 | -6/Factory | Entered DSF 7575 | -6/DSF | Additional patrols routed to DSF 7576 | -6/DSF | Discovered new exit (range 15) 7582 | -6/DSF | Identified exit to Factory 7634 | -6/DSF | Entered Factory 7634 | -5/Factory | Accompanied by 1 ally 7634 | -5/Factory | Evolved 2 slots: Utility x1, Weapon x1 7650 | -5/Factory | Discovered new exit (range 5) 7651 | -5/Factory | Identified exit to Factory 7884 | -5/Factory | Identified exit to Garrison 7893 | -5/Factory | Entered Garrison 7899 | -5/Garrison | Expanded RIF knowledge: Command Fork 7904 | -5/Garrison | Triggered checkpoint 7942 | -5/Garrison | Spotted B-75 Beast 7952 | -5/Garrison | Triggered checkpoint 7954 | -5/Garrison | Triggered checkpoint 7982 | -5/Garrison | Discovered new exit (range 8) 7984 | -5/Garrison | Identified exit to Factory 7985 | -5/Garrison | Entered Factory 8036 | -5/Factory | Identified exit to DSF 8037 | -5/Factory | Entered DSF 8056 | -5/DSF | Discovered exit to Factory (range 21) 8062 | -5/DSF | Additional patrols routed to DSF 8144 | -5/DSF | Sterilization system engaged 8164 | -5/DSF | Ambient heat levels rising (+10) 8164 | -5/DSF | Entered Factory 8164 | -4/Factory | Evolved 2 slots: Propulsion x1, Utility x1 8179 | -4/Factory | Lost 3 parts (1u2w) 8327 | -4/Factory | Sucked down chute 8327 | -4/Factory | Entered Waste 8346 | -4/Waste | Warlord forces began an assault 8379 | -4/Waste | Spotted C-40 Crusher 8387 | -4/Waste | Spotted C-40 Crusher 8388 | -4/Waste | Spotted C-40 Crusher 8392 | -4/Waste | Allies destroyed C-40 Crusher 8398 | -4/Waste | Allies destroyed C-40 Crusher 8405 | -4/Waste | Allies destroyed C-40 Crusher 8406 | -4/Waste | Spotted C-40 Crusher 8421 | -4/Waste | Allies destroyed C-40 Crusher 8425 | -4/Waste | Spotted C-40 Crusher 8431 | -4/Waste | Lost 6 allies 8431 | -4/Waste | Allies destroyed C-40 Crusher 8441 | -4/Waste | Found Prototype Launcher 8441 | -4/Waste | Identified Point Singularity Launcher 8465 | -4/Waste | Discovered new exit (range 12) 8469 | -4/Waste | Spotted C-40 Crusher 8488 | -4/Waste | Allies destroyed C-40 Crusher 8668 | -4/Waste | Identified exit to Factory 8691 | -4/Waste | Entered Factory 8691 | -4/Factory | Accompanied by 11 allies 8828 | -4/Factory | Repaired Enh. Quantum Rifle 8904 | -4/Factory | Repaired Lgt. Quantum Reactor 8968 | -4/Factory | Identified exit to Garrison 8970 | -4/Factory | Entered Garrison 8970 | -4/Garrison | Accompanied by 12 allies 8977 | -4/Garrison | Expanded RIF knowledge: Threat Obfuscation 8997 | -4/Garrison | Build established: Mutant 9071 | -4/Garrison | Phase Generator disabled 9093 | -4/Garrison | Garrison Relay disabled 9114 | -4/Garrison | Triggered checkpoint 9114 | -4/Garrison | Garrison Relay disabled 9199 | -4/Garrison | Spotted B-86 Titan 9206 | -4/Garrison | Triggered checkpoint 9220 | -4/Garrison | Triggered checkpoint 9255 | -4/Garrison | Discovered new exit (range 10) 9274 | -4/Garrison | Lost 6 parts (5n1w) 9278 | -4/Garrison | Lost 8 allies 9283 | -4/Garrison | Identified exit to Factory 9283 | -4/Garrison | Entered Factory 9369 | -4/Factory | Fabricated Hacking Suite? 9459 | -4/Factory | Fabricated Hacking Suite? 9484 | -4/Factory | Lost 3 allies 9575 | -4/Factory | Found Quantum Capacitor 9687 | -4/Factory | Discovered new exit (range 19) 9694 | -4/Factory | Entered Extension 9756 | -4/Extension | Rescued a captive Derelict 9757 | -4/Extension | Rescued a captive Derelict 9885 | -4/Extension | Lost 3 allies 10033 | -4/Extension | Rescued A7 10095 | -4/Extension | Spotted B-86 Titan 10107 | -4/Extension | Rescued a captive Derelict 10108 | -4/Extension | Rescued a captive Derelict 10130 | -4/Extension | Allies destroyed B-86 Titan 10132 | -4/Extension | Spotted B-86 Titan 10140 | -4/Extension | Destroyed B-86 Titan 10164 | -4/Extension | Lost 3 allies 10307 | -4/Extension | Disrupted transfer network 10411 | -4/Extension | Discovered new exit (range 22) 10411 | -4/Extension | Discovered new exit (range 22) 10642 | -4/Extension | Build established: Scavenger-Mutant 10695 | -4/Extension | Entered Research 10695 | -3/Research | Accompanied by 2 allies (A7) 10695 | -3/Research | Evolved 2 slots: Utility x2 11176 | -3/Research | Lost 5 parts (1p2n1u1w) 11195 | -3/Research | System corruption reached 10% 11245 | -3/Research | Spotted B-86 Titan 11467 | -3/Research | Found Prototype Launcher 11468 | -3/Research | Identified Hellfire Missile Launcher 11798 | -3/Research | Destroyed 8 combat bots 11894 | -3/Research | Crushed by falling debris 11925 | -3/Research | Lost 7 parts (2n5u) 12035 | -3/Research | Discovered new exit (range 5) 12045 | -3/Research | Found Gamma Bomb Array 12047 | -3/Research | Entered Quarantine 12076 | -3/Quarantine | Lost 3 parts (1n2u) 12298 | -3/Quarantine | Found Alien Artifact 12298 | -3/Quarantine | Identified Subatomic Replicator 12324 | -3/Quarantine | Build established: Scavenger-Gunner 12360 | -3/Quarantine | Core integrity fell below 50% 12390 | -3/Quarantine | Lost 4 parts (2p2u) 12514 | -3/Quarantine | Garrison activated, responded to threat 12535 | -3/Quarantine | Found Alien Artifact 12535 | -3/Quarantine | Identified Core Reset Matrix 12535 | -3/Quarantine | Used Core Reset Matrix 12539 | -3/Quarantine | Detected hypermatrix surge 12539 | -3/Quarantine | Sensed 11 artifacts in vicinity 12546 | -3/Quarantine | Identified exit to Garrison 12565 | -3/Quarantine | Lost 9 parts (1p3n2u3w) 12583 | -3/Quarantine | Core integrity fell below 20% 12606 | -3/Quarantine | Spotted Fortress 12639 | -3/Quarantine | Lost 3 parts (3u) 12640 | -3/Quarantine | Discovered new exit (range 6) 12643 | -3/Quarantine | Entered Section 7 12644 | -3/Section 7 | Sensed 21 artifacts in vicinity 12761 | -3/Section 7 | Spotted S7 Guard 12792 | -3/Section 7 | Found Prototype Device 12792 | -3/Section 7 | Identified Exp. Thermal Shield 12797 | -3/Section 7 | Destroyed by G-67 Veteran with Field Laser Last Messages --------------- 12736_ K-01 Serf system corrupted by crushing effect. 12736_ Destabilizing: System corrupted (+2). 12738_ System corrupted: Energy discharge (-15). 12755_ VDID CUKMM|M4JXAFFLNYBVXNNDVXVU27RCLW5N= 12761_ Penetrated by Slug. 12761_ Slug penetrates Wall. 12772_ Penetrated by Slug. 12772_ Imp. Fusion Compressor destroyed. 12772_ Imp. Gyrokinetic Inverter destroyed. 12775_ Slug penetrates Wall. 12775_ Matter Filter destroyed. 12785_ Penetrated by Slug. 12789_ Acquired Prototype Device. 12789_ Identified Exp. Power Amplifier. 12792_ Acquired Prototype Device. 12792_ Identified Exp. Thermal Shield. 12792_ Faulty integration triggers heat surge (+412). 12794_ Slug penetrates Wall. 12795_ Penetrated by Slug. 12795_ Slug penetrates Wall. Map ----- +----------------------------------------------------+ | #??????????????????????# #?????????????????? | | #???????????????######## #?????????????????? | | #???????????????# #?????????????????? | | #???????????????# #?????????????????? | | #???????????????# #?????????????????? | | #???????????????# #?????????????????? | | #???????????????# ########?????????????????? | | #???????????????# #????????????????????????? | | #???????????????# #????????????????????????? | | ^ #????????######## #????????????????????????? | | #????????#" " #????????????????????????? | | #????????#"" # #????????????????????????? | | #????????#" # #????????????????????????? | | ## #????????#"""" #### #????????????????????????? | | ?# #????????#""!" #??# #????????????????????????? | | ?# #????????#""""" #??# #????????????????????????? | | ?# #????????#""""" #??# #?#########??????????????? | | ?# #????????########??# #?# ###????????????? | | ?# #??????????????????# #?# """ ""#????????????? | | ?# #????????########### ### " " ""#????????????? | | ?# #????????# + # """ ""#????????????? | | ?# #????????# """ # hY # T#????????????? | | ?# #????????# """ # # """ ""#????????????? | | ?# #????????# """ # h # " " ""#????????????? | | ?# #????????# # # """ ""#????????????? | | ?# #????????# """ #w @g ###????????????? | | ?# #????????# """ + # """ #??????????????? | | ?# #????##### """ # # " " #??????????????? | | ?# #????#""## # # """ #??????????????? | | ?# #???##T"########### # #??????????????? | | ?# #???# #! """ #??????????????? | | ?# #???# # " " #??????????????? | | ?# #???# # """ #??????????????? | | ?# #???# # #??????????????? | | ##+##### ###/###################??????????????? | | # ## #??????????????????????????? | | # ## """ #??????????????????????????? | | "" """ # ## " " ""#??????????????????????????? | | "" """ # ## """ ""#??????????????????????????? | | "" """ # ## ""#??????????????????????????? | | "" """ + ## == T"#??????????????????????????? | | "" """ # ## =! """#??????????????????????????? | | # ## =! "" #??????????????????????????? | | ######## ## #??????????????????????????? | | ????# ###+#######??????????????????????????? | | ????# #?# #????????????????????????????????? | | ????# #?# #????????????????????????????????? | | ????# #?# #????????????????????????????????? | | ????####+###### #????????????????????????????????? | | ????# ## #????????????????????????????????? | +----------------------------------------------------+ Best States ------------- Heat Dissipation 115 Coolant Potential 100 Energy Generation 44 Energy Capacity 940 Matter Stores 300 Matter Capacity 300 Sight Range 23 Robot Scan Range 16 Terrain Scan Density 10 ECM Strength 2 Power Amplification 40 Additional Mass Support 20 Base Temperature (-) 200 Armor Coverage 800 Resistance: KI 30 Resistance: TH 30 Resistance: EX 50 Power Shielding 33 Propulsion Shielding 66 Point Defense Rating 240 Phase Shifting 5 Evasion (%) 66 Targeting Accuracy 19 Melee Accuracy 16 Target Analysis 8 Recoil Reduction 3 Matter Filtering 30 Kinecelleration 40 Salvage Targeting 3 Offensive Hacking 20 Defensive Hacking 10 Relay Coupler Types 3 Relay Coupler Value 100 Authchip Count 1 Item Schematics ----------------- None Robot Schematics ------------------ None Fabricated ------------ Hacking Suite | x1 | -4/Factory | Authchip Hacking Suite | x1 | -4/Factory Alien Tech Used ----------------- Subatomic Replicator Core Reset Matrix Achievements -------------- Assimilation Complete Nope Overkill Challenges ------------ None Game ------ Seed LayeredPiercingStorm Manual? 0 Play Time 03:26:53 Cumulative 103.4 hours Start 2024.04.05 @ 22:55:54 End 2024.04.06 @ 12:37:29 Sessions 3 Manual Loads 0 Difficulty Rogue Special Mode None Game No. 98 Rogue 98 Adventurer 0 Explorer 0 Win Type - Total 3 Types 2/0/0/1/0/0/0/0/0 Lore% 45 Gallery% 66 Achievement% 49 Wizard Run 0 Options --------- Layout 1 ASCII 0 Keyboard 1 Movement Numpad Keybinds 0 Fullscreen 1 Font 32/SmallcapsGlow Map View 77x35 Zoom Use 0% Tactical HUD 1 Map Filters NONE Filters NONE Steam 1 RUN: dc56f8c8-0821-479f-b03d-68e64984cde2